fUST/lending_fUST_20240120
["ID","MTS","AMOUNT","RATE_DAILY","PERIOD"]
[312244775,1705704638747,-167.197675,0.00026099,2]
[312244777,1705704638756,-18860.71,0.00026338,3]
[312244779,1705704638765,-22632.85,0.00026348,3]
[312244781,1705704638774,-22663.2096199,0.00026358,3]
[312244783,1705704638787,-4496.2103801,0.00026358,3]
[312244785,1705704638796,-662.3223854,0.00026367,2]
[312244787,1705704638806,-716.37278709,0.00026368,2]
[312244789,1705704638815,-1763.93265691,0.00026369,2]
[312244791,1705704638824,-802.07766174,0.00026369,2]
[312244793,1705704638834,-16787.2524036,0.00026369,2]
[312244795,1705704638843,-3395.19496733,0.0002637,2]
[312244797,1705704638854,-18280.41325707,0.0002637,2]
[312244799,1705704638863,-3910.88074803,0.00026371,2]
[312244801,1705704638872,-155.058075,0.00026371,2]
[312244803,1705704638881,-242.70971485,0.00026371,2]
[312244805,1705704638890,-179.11058245,0.00026371,2]
[312244807,1705704638899,-1370.99437628,0.00026372,2]
[312244809,1705704638909,-274.61857249,0.00027,2]
[312244811,1705704638919,-260.0,0.00027,2]
[312244813,1705704638929,-633.72519907,0.00027192,2]
[312244815,1705704638938,-500.0,0.00027394,2]
[312244817,1705704638947,-190.43096174,0.00027394,2]
[312244819,1705704638956,-631.45669408,0.00027394,2]
[312244821,1705704638965,-500.0,0.00027394,2]
[312244823,1705704638974,-500.0,0.00027394,2]
[312244825,1705704638983,-500.0,0.00027394,2]
[312244827,1705704638992,-542.48345084,0.00027394,2]
[312244828,1705704639001,-16604.1582385,0.00027395,2]
[312244830,1705704639011,-561.15323628,0.00027395,2]
[312244832,1705704639028,-4805.50657012,0.00027395,2]
[312244834,1705704639037,-155.12385134,0.00027395,2]
[312244836,1705704639048,-5969.55228858,0.00027395,2]
[312244838,1705704639059,-155.42148615,0.00027395,2]
[312244840,1705704639070,-2813.43161407,0.00027395,2]
[312244842,1705704639079,-155.3937024,0.00027395,2]
[312244844,1705704639087,-496.91772445,0.00027395,2]
[312244846,1705704639097,-965.67931837,0.00027395,2]
[312244848,1705704639106,-302.12150469,0.00027395,2]
[312244850,1705704639115,-260.45527648,0.00027395,2]
[312244852,1705704639124,-166.38930686,0.00027395,2]
[312244854,1705704639133,-296.58148491,0.00027395,2]
[312244856,1705704639142,-171.33946642,0.00027395,2]
[312244858,1705704639151,-259.93145126,0.00027395,2]
[312244860,1705704639160,-327.3065169,0.00027395,2]
[312244870,1705704639281,-630.3303575,0.00027554,2]
[312244871,1705704639290,-290.08228321,0.00028,2]
[312244872,1705704639299,-154.86062544,0.00028,10]
[312244873,1705704639309,-200.0,0.00028506,15]
[312244874,1705704639318,-200.0,0.00028506,15]
[312244875,1705704639328,-368.0,0.00028506,15]
[312244876,1705704639337,-620.68625995,0.00028552,2]
[312244877,1705704639346,-155.06823002,0.00028701,3]
[312244878,1705704639356,-1188.537122,0.00028768,2]
[312244879,1705704639365,-1188.537122,0.00028768,2]
[312244880,1705704639375,-151.0,0.00028768,2]
[312244881,1705704639384,-151.0,0.00028768,2]
[312244882,1705704639394,-84860.83660765,0.00028768,2]
[312244883,1705704639403,-3000.0,0.000288,3]
[312244884,1705704639412,-279.98947194,0.000289,2]
[312244885,1705704639421,-154.86062544,0.00029,2]
[312244886,1705704639429,-1879.41245692,0.00029,2]
[312244887,1705704639439,-206.8857815,0.00029178,2]
[312244888,1705704639448,-153.0,0.00029178,2]
[312244889,1705704639457,-153.0,0.00029315,2]
[312244890,1705704639466,-153.0,0.00029315,2]
[312244891,1705704639475,-153.0,0.00029315,2]
[312244892,1705704639484,-153.0,0.00029315,2]
[312244893,1705704639495,-342.6463724,0.00029315,2]
[312244894,1705704639505,-153.0,0.00029315,2]
[312244895,1705704639514,-153.0,0.00029315,2]
[312244896,1705704639523,-153.0,0.00029315,2]
[312244897,1705704639532,-153.0,0.00029315,2]
[312244898,1705704639541,-153.0,0.00029315,2]
[312244899,1705704639550,-153.0,0.00029315,2]
[312244900,1705704639559,-153.0,0.00029315,2]
[312244901,1705704639568,-153.0,0.00029315,2]
[312244902,1705704639577,-153.0,0.00029315,2]
[312244903,1705704639586,-153.0,0.00029315,2]
[312244904,1705704639596,-153.0,0.00029315,2]
[312244905,1705704639605,-153.0,0.00029315,2]
[312244906,1705704639614,-153.0,0.00029315,2]
[312244907,1705704639622,-199.0432224,0.00029315,2]
[312244908,1705704639632,-153.0,0.00029315,2]
[312244909,1705704639642,-153.0,0.00029315,2]
[312244910,1705704639651,-199.0432224,0.00029315,2]
[312244911,1705704639661,-9114.76945328,0.00029355,4]
[312244912,1705704639670,-333.78941707,0.0002944,2]
[312244913,1705704639679,-153.0,0.00029589,2]
[312244914,1705704639688,-153.0,0.00029841,2]
[312244915,1705704639697,-153.0,0.00029841,2]
[312244916,1705704639707,-439.61497917,0.00029889,2]
[312244917,1705704639716,-475.01653594,0.00029889,4]
[312244918,1705704639725,-500.0,0.00029889,4]
[312244919,1705704639735,-500.0,0.00029889,4]
[312244920,1705704639744,-433.78102858,0.00029889,4]
[312244921,1705704639753,-410.83858145,0.00029889,4]
[312244922,1705704639762,-382.67178203,0.00029889,4]
[312244923,1705704639772,-500.0,0.00029889,4]
[312244924,1705704639781,-161.09873498,0.00029889,4]
[312244925,1705704639790,-530.00705234,0.00029889,4]
[312244926,1705704639799,-500.0,0.00029889,4]
[312244927,1705704639808,-500.0,0.00029889,4]
[312244928,1705704639818,-500.0,0.00029889,4]
[312244930,1705704639826,-500.0,0.00029889,4]
[312244931,1705704639836,-500.0,0.00029889,4]
[312244933,1705704639845,-500.0,0.00029889,4]
[312244934,1705704639854,-500.0,0.00029889,4]
[312244935,1705704639863,-500.0,0.00029889,4]
[312244936,1705704639872,-500.0,0.00029889,4]
[312244937,1705704639881,-500.0,0.00029889,4]
[312244938,1705704639890,-500.0,0.00029889,4]
[312244939,1705704639898,-376.37785999,0.0002989,3]
[312244940,1705704639907,-276000.0,0.0002989,2]
[312244941,1705704639917,-1188.537122,0.0002989,2]
[312244942,1705704639926,-1188.537122,0.0002989,2]
[312244943,1705704639935,-10000.0,0.0002989,2]
[312244944,1705704639944,-10000.0,0.0002989,2]
[312244945,1705704639953,-10000.0,0.0002989,2]
[312244946,1705704639962,-151.0,0.0002989,2]
[312244947,1705704639971,-288.0,0.0002989,2]
[312244948,1705704639982,-153.0,0.00029978,2]
[312244949,1705704639992,-199.0432224,0.00029978,2]
[312244950,1705704640001,-199.0432224,0.00029978,2]
[312244951,1705704640011,-153.0,0.00029978,2]
[312244952,1705704640022,-343.8412942,0.00029978,2]
[312244953,1705704640031,-199.0432224,0.00029978,2]
[312244954,1705704640040,-620.034313,0.00029979,2]
[312244955,1705704640049,-6000.0,0.0003,7]
[312244956,1705704640059,-682.3767278,0.0003,3]
[312244957,1705704640068,-280.92218192,0.0003,30]
[312244958,1705704640077,-3760.16732,0.0003,2]
[312244959,1705704640086,-688.01285151,0.0003,4]
[312244960,1705704640095,-464.33375401,0.0003,2]
[312244961,1705704640104,-243.97478798,0.0003,4]
[312244962,1705704640113,-154.86062544,0.0003,4]
[312244963,1705704640122,-155.0,0.0003,2]
[312244964,1705704640131,-153.0,0.00030041,2]
[312244965,1705704640140,-153.0,0.00030041,2]
[312244966,1705704640149,-153.0,0.00030041,2]
[312244967,1705704640158,-153.0,0.00030041,2]
[312244968,1705704640168,-153.0,0.00030041,2]
[312244969,1705704640176,-500.0,0.00030136,2]
[312244970,1705704640186,-153.0,0.00030137,2]
[312244971,1705704640195,-153.0,0.00030137,2]
[312244972,1705704640204,-153.0,0.00030137,2]
[312244973,1705704640213,-199.0432224,0.00030137,2]
[312244974,1705704640222,-199.0432224,0.00030137,2]
[312244975,1705704640231,-199.0432224,0.00030137,2]
[312244976,1705704640240,-199.0432224,0.00030137,2]
[312244977,1705704640248,-199.0432224,0.00030137,2]
[312244978,1705704640257,-199.0432224,0.00030137,2]
[312244979,1705704640266,-199.0432224,0.00030137,2]
[312244980,1705704640276,-199.0432224,0.00030137,2]
[312244981,1705704640285,-199.0432224,0.00030137,2]
[312244982,1705704640294,-153.0,0.00030137,2]
[312244983,1705704640303,-199.0432224,0.00030137,2]
[312244984,1705704640312,-153.0,0.00030137,2]
[312244985,1705704640321,-199.0432224,0.00030137,2]
[312244986,1705704640330,-153.0,0.00030137,2]
[312244987,1705704640339,-153.0,0.00030137,2]
[312244988,1705704640348,-199.0432224,0.00030137,2]
[312244989,1705704640357,-153.0,0.00030137,2]
[312244990,1705704640366,-199.0432224,0.00030137,2]
[312244991,1705704640376,-199.0432224,0.00030137,2]
[312244992,1705704640385,-153.0,0.00030137,2]
[312244993,1705704640394,-153.0,0.00030137,2]
[312244994,1705704640403,-199.0432224,0.00030137,2]
[312244996,1705704640411,-199.0432224,0.00030137,2]
[312244998,1705704640421,-153.0,0.00030137,2]
[312244999,1705704640429,-153.0,0.00030137,2]
[312245000,1705704640438,-199.0432224,0.00030137,2]
[312245001,1705704640447,-153.0,0.00030137,2]
[312245002,1705704640456,-306.0,0.00030137,2]
[312245003,1705704640465,-288.384557,0.00030137,2]
[312245004,1705704640475,-189.216389,0.00030137,2]
[312245005,1705704640484,-150.59780387,0.00030137,7]
[312245006,1705704640493,-153.0,0.00030178,2]
[312245007,1705704640502,-199.0432224,0.00030178,2]
[312245008,1705704640511,-199.0432224,0.00030178,2]
[312245009,1705704640520,-153.0,0.00030178,2]
[312245010,1705704640529,-199.0432224,0.00030178,2]
[312245011,1705704640538,-153.0,0.00030178,2]
[312245012,1705704640547,-500.0,0.00030273,2]
[312245013,1705704640556,-500.0,0.0003041,2]
[312245014,1705704640566,-153.0,0.00030452,2]
[312245015,1705704640575,-153.0,0.00030452,2]
[312245016,1705704640584,-500.0,0.00030547,2]
[312245017,1705704640593,-38560.35367316,0.00030582,3]
[312245018,1705704640602,-630.3303575,0.00030582,2]
[312245019,1705704640611,-3000.0,0.000306,14]
[312245020,1705704640620,-764.99,0.00030681,2]
[312245021,1705704640629,-764.99,0.00030681,2]
[312245022,1705704640639,-764.99,0.00030681,2]
[312245023,1705704640648,-764.99,0.00030681,2]
[312245024,1705704640657,-764.99,0.00030681,2]
[312245025,1705704640666,-764.99,0.00030681,2]
[312245026,1705704640675,-764.99,0.00030681,2]
[312245027,1705704640684,-764.99,0.00030681,2]
[312245028,1705704640693,-764.99,0.00030681,2]
[312245029,1705704640702,-764.99,0.00030681,2]
[312245030,1705704640711,-188.40641965,0.00030681,7]
[312245031,1705704640721,-399.069975,0.00030682,2]
[312245032,1705704640730,-399.069975,0.00030682,2]
[312245033,1705704640739,-399.069975,0.00030682,2]
[312245034,1705704640748,-399.069975,0.00030682,2]
[312245035,1705704640757,-399.069975,0.00030682,2]
[312245036,1705704640766,-399.069975,0.00030682,2]
[312245037,1705704640775,-399.069975,0.00030682,2]
[312245038,1705704640785,-399.069975,0.00030682,2]
[312245040,1705704640794,-1188.537122,0.00030682,2]
[312245042,1705704640803,-1188.537122,0.00030682,2]
[312245044,1705704640813,-1188.537122,0.00030682,2]
[312245045,1705704640824,-1188.537122,0.00030682,2]
[312245046,1705704640833,-1188.537122,0.00030682,2]
[312245047,1705704640843,-1188.537122,0.00030682,2]
[312245048,1705704640852,-1188.537122,0.00030682,2]
[312245049,1705704640861,-1188.537122,0.00030682,2]
[312245050,1705704640870,-10000.0,0.00030682,2]
[312245051,1705704640880,-10000.0,0.00030682,2]
[312245052,1705704640890,-10000.0,0.00030682,2]
[312245053,1705704640900,-10000.0,0.00030682,2]
[312245054,1705704640909,-10000.0,0.00030682,2]
[312245055,1705704640918,-10000.0,0.00030682,2]
[312245056,1705704640927,-10000.0,0.00030682,2]
[312245057,1705704640936,-10000.0,0.00030682,2]
[312245058,1705704640946,-10000.0,0.00030682,2]
[312245059,1705704640955,-10000.0,0.00030682,2]
[312245060,1705704640964,-10000.0,0.00030682,2]
[312245061,1705704640973,-10000.0,0.00030682,2]
[312245062,1705704640983,-151.0,0.00030682,2]
[312245063,1705704640992,-151.0,0.00030682,2]
[312245064,1705704641002,-151.0,0.00030682,2]
[312245065,1705704641011,-151.0,0.00030682,2]
[312245066,1705704641025,-151.0,0.00030682,2]
[312245067,1705704641034,-50000.0,0.00030682,4]
[312245068,1705704641043,-50000.0,0.00030682,4]
[312245069,1705704641053,-50000.0,0.00030682,4]
[312245070,1705704641063,-50000.0,0.00030682,4]
[312245071,1705704641072,-50000.0,0.00030682,4]
[312245072,1705704641081,-97032.10860628,0.00030682,4]
[312245073,1705704641090,-8351.42521321,0.00030682,5]
[312245074,1705704641100,-50423.09004853,0.00030682,5]
[312245075,1705704641110,-14253.37678384,0.00030682,5]
[312245076,1705704641120,-500.0,0.00030684,2]
[312245077,1705704641130,-273.1,0.0003069,30]
[312245078,1705704641140,-175.06,0.0003069,30]
[312245079,1705704641150,-156.05990121,0.00030744,4]
[312245080,1705704641160,-153.0,0.000308,2]
[312245081,1705704641169,-500.0,0.00030821,2]
[312245082,1705704641178,-623.0,0.0003087,30]
[312245083,1705704641187,-150.5,0.0003087,30]
[312245084,1705704641197,-623.0,0.0003088,30]
[312245085,1705704641207,-150.5,0.0003088,30]
[312245086,1705704641218,-243.69,0.0003089,30]
[312245087,1705704641227,-623.0,0.0003089,30]
[312245088,1705704641236,-157.43,0.0003089,30]
[312245089,1705704641246,-150.5,0.0003089,30]
[312245090,1705704641256,-151.0,0.00030892,2]
[312245091,1705704641265,-154.98450155,0.00030896,4]
[312245092,1705704641275,-219.56301904,0.00030896,4]
[312245093,1705704641284,-241.77229142,0.00030898,4]
[312245094,1705704641295,-155.01395126,0.00030898,2]
[312245095,1705704641304,-170.72767926,0.00030898,4]
[312245096,1705704641314,-275.43231332,0.00030898,4]
[312245097,1705704641323,-326.94921796,0.00030898,4]
[312245098,1705704641333,-155.45191083,0.00030898,4]
[312245099,1705704641447,-193.00215354,0.00030898,2]
[312245100,1705704641457,-155.23850692,0.00030898,4]
[312245101,1705704641467,-172.15969274,0.00030898,4]
[312245102,1705704641477,-2033.48363052,0.00030898,4]
[312245103,1705704641486,-155.37889533,0.00030898,4]
[312245104,1705704641495,-1000.0,0.00030899,14]
[312245105,1705704641504,-829.1810316,0.00030899,14]
[312245106,1705704641514,-887.29357064,0.000309,4]
[312245107,1705704641523,-4320.19775833,0.000309,4]
[312245108,1705704641532,-1026.04916894,0.000309,2]
[312245109,1705704641542,-410.47740177,0.000309,4]
[312245110,1705704641551,-154.86062544,0.000309,2]
[312245111,1705704641560,-195.20473695,0.000309,4]
[312245112,1705704641569,-283.06089695,0.000309,3]
[312245113,1705704641578,-151.0,0.000309,2]
[312245114,1705704641587,-232.109022,0.000309,2]
[312245115,1705704641595,-300.0,0.000309,4]
[312245116,1705704641605,-500.0,0.00030958,2]
[312245117,1705704641614,-288.384557,0.00030959,2]
[312245118,1705704641623,-767.5095199,0.00030998,4]
[312245119,1705704641633,-283.87572807,0.00030998,4]
[312245120,1705704641643,-1265.98341186,0.00030998,4]
[312245121,1705704641652,-2309.91239981,0.00030998,4]
[312245122,1705704641661,-91254.01147155,0.00031,2]
[312245123,1705704641676,-10202.84952288,0.00031,2]
[312245137,1705704643484,-823.86653966,0.000227,2]
[312245138,1705704643494,-760.31790163,0.00024523,5]
[312245139,1705704643504,-607.78983893,0.00027394,2]
[312245140,1705704643513,-168.38317425,0.00027394,2]
[312245141,1705704643522,-199.0432224,0.00029315,2]
[312245142,1705704643532,-153.0,0.00029841,2]
[312245143,1705704643542,-344.65807448,0.0003099,3]
[312245144,1705704643553,-15372.60192552,0.0003099,3]
[312245145,1705704643563,-27598.89159977,0.00031,2]
[312245146,1705704643572,-300.0,0.00031,4]
[312245147,1705704643581,-155.06631104,0.00031,4]
[312245148,1705704643591,-1824.95710943,0.00031,2]
[312245149,1705704643600,-1739.24438232,0.00031,4]
[312245150,1705704643609,-1200.0,0.00031,4]
[312245151,1705704643619,-747.00706671,0.00031,4]
[312245152,1705704643628,-500.38151373,0.00031,2]
[312245153,1705704643638,-238.08177011,0.00031,2]
[312245154,1705704643648,-300.0,0.00031,15]
[312245155,1705704643658,-151.0,0.00031,2]
[312245156,1705704643667,-399.069975,0.00031,2]
[312245157,1705704643677,-399.069975,0.00031,2]
[312245158,1705704643687,-150.0,0.00031,3]
[312245159,1705704643697,-1188.537122,0.00031,2]
[312245160,1705704643707,-1188.537122,0.00031,2]
[312245161,1705704643718,-185.76238,0.00031,5]
[312245162,1705704643728,-10000.0,0.00031,2]
[312245163,1705704643737,-10000.0,0.00031,2]
[312245164,1705704643747,-8446.869728,0.00031,2]
[312245165,1705704643756,-151.0,0.00031,2]
[312245166,1705704643766,-500.0,0.00031095,2]
[312245167,1705704643775,-500.0,0.00031232,2]
[312245168,1705704643784,-200.0,0.00031357,15]
[312245169,1705704643794,-200.0,0.00031357,15]
[312245170,1705704643803,-200.0,0.00031357,15]
[312245171,1705704643812,-200.0,0.00031357,15]
[312245172,1705704643823,-275.0,0.00031357,15]
[312245173,1705704643833,-500.0,0.00031369,2]
[312245174,1705704643843,-155.0,0.0003137,2]
[312245175,1705704643854,-620.00171565,0.00031478,2]
[312245176,1705704643870,-509.1638357,0.00031506,2]
[312245177,1705704643885,-288.384557,0.00031781,2]
[312245178,1705704643900,-151.0,0.00031894,2]
[312245179,1705704643911,-319.08679849,0.00032,4]
[312245180,1705704643924,-154.86062544,0.00032,4]
[312245181,1705704643937,-154.86062544,0.00032,4]
[312245182,1705704643952,-300.0,0.000325,16]
[312245183,1705704643966,-288.384557,0.00032603,2]
[312245184,1705704643979,-1601.245366,0.00032728,2]
[312245185,1705704643991,-155.0,0.0003274,2]
[312245186,1705704644002,-250.0,0.00032876,7]
[312245187,1705704644015,-500.0,0.00032876,7]
[312245188,1705704644031,-495.82405123,0.00032876,7]
[312245189,1705704644045,-500.0,0.00032876,7]
[312245190,1705704644057,-500.0,0.00032876,7]
[312245191,1705704644071,-500.0,0.00032876,7]
[312245192,1705704644084,-500.0,0.00032876,7]
[312245193,1705704644097,-272.50528926,0.00032876,7]
[312245194,1705704644109,-500.0,0.00032876,7]
[312245195,1705704644123,-500.0,0.00032876,7]
[312245196,1705704644135,-500.0,0.00032876,7]
[312245197,1705704644149,-473.59252056,0.00032876,7]
[312245198,1705704644161,-500.0,0.00032876,7]
[312245199,1705704644175,-281.86258813,0.00032876,7]
[312245200,1705704644190,-500.0,0.00032876,7]
[312245201,1705704644203,-500.0,0.00032876,7]
[312245202,1705704644218,-500.0,0.00032876,7]
[312245203,1705704644234,-500.0,0.00032876,7]
[312245204,1705704644249,-500.0,0.00032876,7]
[312245205,1705704644260,-364.67390336,0.00032876,7]
[312245206,1705704644273,-151.0,0.00032897,2]
[312245207,1705704644284,-6762.26543772,0.00033,4]
[312245208,1705704644296,-386.44566217,0.00033,2]
[312245209,1705704644311,-620.00008578,0.00033052,2]
[312245210,1705704644323,-150.0,0.00033202,2]
[312245211,1705704644337,-2292.61420092,0.00033378,2]
[312245212,1705704644350,-288.384557,0.00033425,2]
[312245213,1705704644362,-318.535942,0.00033719,2]
[312245214,1705704644373,-702.593906,0.00033719,2]
[312245215,1705704644385,-151.0,0.000339,2]
[312245216,1705704644396,-1098.06332805,0.00034,3]
[312245217,1705704644410,-300.0,0.00034,17]
[312245218,1705704644422,-155.0,0.0003411,2]
[312245219,1705704644434,-318.535942,0.00034141,2]
[312245220,1705704644445,-702.593906,0.00034141,2]
[312245221,1705704644458,-500.0,0.00034246,7]
[312245222,1705704644469,-288.384557,0.00034247,2]
[312245223,1705704644482,-399.069975,0.00034247,2]
[312245224,1705704644494,-399.069975,0.00034247,2]
[312245225,1705704644506,-1188.537122,0.00034247,2]
[312245226,1705704644517,-1188.537122,0.00034247,2]
[312245227,1705704644528,-10000.0,0.00034247,2]
[312245228,1705704644539,-10000.0,0.00034247,2]
[312245229,1705704644550,-200.0,0.00034493,15]
[312245230,1705704644561,-200.0,0.00034493,15]
[312245231,1705704644573,-200.0,0.00034493,15]
[312245232,1705704644584,-200.0,0.00034493,15]
[312245233,1705704644596,-200.0,0.00034493,15]
[312245234,1705704644607,-200.0,0.00034493,15]
[312245235,1705704644618,-305.0,0.00034493,15]
[312245236,1705704644629,-1273.60431467,0.0003452,2]
[312245237,1705704644641,-151.0,0.0003452,2]
[312245238,1705704644652,-318.535942,0.00034562,2]
[312245239,1705704644664,-702.593906,0.00034562,2]
[312245240,1705704644675,-151.0,0.00034902,2]
[312245241,1705704644686,-318.535942,0.00034984,2]
[312245242,1705704644698,-702.593906,0.00034984,2]
[312245243,1705704644709,-591.76162003,0.00035,2]
[312245244,1705704644721,-3119.50448181,0.00035,19]
[312245245,1705704644732,-48421.44797085,0.00035,2]
[312245246,1705704644743,-154.86062544,0.00035,4]
[312245247,1705704644755,-19060.79918765,0.00035,3]
[312245248,1705704644766,-2084.5801718,0.00035,4]
[312245249,1705704644777,-3592.36268445,0.00035,2]
[312245250,1705704644788,-154.86062544,0.00035,4]
[312245251,1705704644800,-333.05418458,0.00035,4]
[312245252,1705704644812,-850.4122818,0.00035,14]
[312245253,1705704644823,-156.6989059,0.00035,6]
[312245254,1705704644835,-6900.66687552,0.00035,2]
[312245255,1705704645154,-3205.99276385,0.00035,2]
[312245262,1705704646498,-1468.00454349,0.00022416,2]
[312245263,1705704646509,-402.34292713,0.00027393,2]
[312245264,1705704646519,-902.24872337,0.00028767,2]
[312245265,1705704646529,-170.0,0.00033,2]
[312245266,1705704646538,-3240.28093002,0.00035,2]
[312245267,1705704646549,-2852.19065,0.00035,2]
[312245269,1705704646561,-1000.0,0.00035,2]
[312245272,1705704646573,-1754.26323356,0.00035,2]
[312245276,1705704646585,-1756.69442375,0.00035,2]
[312245283,1705704806768,2743.14665239,0.00021997,5]
[312245287,1705704868224,36938.72074232,0.0001,2]
[312245288,1705704898539,3216.76087832,0.0001,2]
[312245289,1705704899966,154.86062544,0.0001,2]
[312245291,1705704919959,156.05814885,0.0001,2]
[312245292,1705704920574,367.27967397,0.0001,2]
[312245293,1705704952840,200.0,0.00022023,7]
[312245310,1705705343271,1259.3971616,0.00016465,2]
[312245311,1705705367267,237.38886488,0.00015891,2]
[312245312,1705705380625,547.67132072,0.00015891,2]
[312245313,1705705384777,534.8672697,0.00015891,2]
[312245314,1705705385114,3216.76087832,0.00015891,2]
[312245315,1705705390662,620.37329655,0.00015891,2]
[312245316,1705705392006,342.93668373,0.00015891,2]
[312245317,1705705393530,1109.19428477,0.00015891,2]
[312245318,1705705398618,547.67132072,0.00015891,2]
[312245319,1705705400777,534.8672697,0.00015891,2]
[312245320,1705705405100,3216.76087832,0.00015891,2]
[312245321,1705705406651,468.67683116,0.00015891,2]
[312245322,1705705411332,414.33071426,0.00015891,2]
[312245323,1705705412029,342.76667724,0.00015891,2]
[312245324,1705705420616,547.67132072,0.00015891,2]
[312245325,1705705420777,534.8672697,0.00015891,2]
[312245326,1705705427101,3216.76087832,0.00015891,2]
[312245327,1705705436629,547.67132072,0.00015891,2]
[312245328,1705705436789,168.57894914,0.00015891,2]
[312245356,1705705449103,3216.76087832,0.00015891,2]
[312245358,1705705454628,367.36025747,0.00015891,2]
[312245360,1705705475103,3216.76087832,0.00015891,2]
[312245361,1705705486287,1922.7183619,0.00015717,2]
[312245363,1705705493108,3216.76087832,0.00015891,2]
[312245364,1705705515116,1327.04681409,0.00015891,2]
[312245365,1705705537813,4052.17585619,0.00015891,2]
[312245366,1705705553893,214.79413535,0.00021222,7]
[312245367,1705705559691,155.29690136,0.00015891,2]
[312245368,1705705570484,611.466693,0.00015705,2]
[312245369,1705705580032,342.40737445,0.00015891,2]
[312245370,1705705589778,6013.4651163,0.00015702,2]
[312245371,1705705591662,154.92253873,0.00015891,2]
[312245378,1705705595990,154.86062544,0.00015891,2]
[312245379,1705705626105,-3484.00738958,0.00016692,2]
[312245380,1705705626128,-787.34773645,0.00016692,2]
[312245381,1705705626150,-165.04572519,0.00016692,2]
[312245382,1705705626171,-154.86062544,0.00016692,2]
[312245383,1705705626192,-154.86062544,0.00016693,2]
[312245384,1705705626214,-1293.1158294,0.00016693,2]
[312245385,1705705626236,-4698.66437663,0.00016693,2]
[312245386,1705705626258,-178.82165208,0.00016693,2]
[312245387,1705705626281,-555.04009963,0.00016694,2]
[312245388,1705705626301,-154.86062544,0.00016694,2]
[312245389,1705705626322,-154.86062544,0.00016694,2]
[312245390,1705705626343,-154.86062544,0.00016694,2]
[312245391,1705705626366,-175.13584081,0.00016694,2]
[312245392,1705705626386,-7956.19039627,0.00016694,2]
[312245393,1705705626407,-154.86062544,0.00016695,2]
[312245394,1705705626428,-160.93382702,0.00016695,2]
[312245395,1705705626452,-294.70821043,0.00016695,2]
[312245396,1705705626473,-4811.28224285,0.00016695,2]
[312245397,1705705626494,-242.99577859,0.00016696,2]
[312245398,1705705626515,-260.99609825,0.00016696,2]
[312245399,1705705626536,-301.77611122,0.00016696,2]
[312245400,1705705626557,-2038.05199526,0.00016696,2]
[312245401,1705705626577,-20891.20723106,0.00016696,2]
[312245402,1705705626598,-561.34972168,0.00016697,2]
[312245403,1705705626619,-526.47495194,0.00016697,2]
[312245404,1705705626639,-977.54301686,0.00016697,2]
[312245405,1705705626660,-977.54301686,0.00016697,2]
[312245406,1705705626681,-154.86062544,0.00016698,2]
[312245407,1705705626702,-154.86062544,0.00016698,2]
[312245408,1705705626724,-230.71907883,0.00016698,2]
[312245409,1705705626744,-18895.08975883,0.00016698,2]
[312245410,1705705626765,-21675.6082244,0.00016698,2]
[312245411,1705705626785,-223.44100186,0.00016698,2]
[312245412,1705705626805,-178.65716453,0.00016699,2]
[312245413,1705705626828,-154.86062544,0.00016699,2]
[312245414,1705705626849,-5180.65166756,0.00016699,2]
[312245415,1705705626870,-21146.62849991,0.00016699,2]
[312245416,1705705630081,-154.86062544,0.00016692,2]
[312245417,1705705630101,-644.05484588,0.00016692,2]
[312245418,1705705630121,-154.86062544,0.00016692,2]
[312245419,1705705630141,-19857.05526045,0.00016692,2]